Cogmind - Beta 16 @@@ ROGUE MODE // 2026.01.02 @ 23:21:56 Player: (Blank) Result: Destroyed by O2-21X(R) with Subdweller Machine Gun Performance ------------- Evolutions (0) 0 Regions Visited (2) 400 Robots Destroyed (16) 80 Value Destroyed (367) 367 Prototype IDs (0) 0 Alien Tech Used (0) 0 Bonus (-56) -56 TOTAL SCORE: 791 Bonus ------- Friendly Fire -56 Cogmind --------- Core Integrity 0/250 Matter 299/300 Energy 100/100 System Corruption 0% Temperature Cool (0) Movement Rolling (110) Location -10/Subcaves Parts ------- > --- POWER (1) -------- (None) > --- PROPULSION (2) --- Subdweller Monowheel > --- UTILITY (2) ------ Weapon Shielding > --- WEAPON (2) ------- Light Assault Rifle > --- INVENTORY (5) ---- Power Shielding Power Shielding Power Shielding Peak State ------------ > --- POWER ------------ Subdweller Power Source > --- PROPULSION ------- Wheel Subdweller Monowheel > --- UTILITY ---------- Heat Sink Weapon Shielding > --- WEAPON ----------- Subdweller Laser Light Assault Rifle > --- INVENTORY -------- Power Shielding Power Shielding Power Shielding [Rating: 10] Favorites ----------- Power Light Ion Engine Engine Light Ion Engine Propulsion Wheel Wheel Wheel Flight Unit Flight Unit Utility Heat Sink Device Heat Sink Protection Weapon Shielding Weapon Light Assault Rifle Energy Gun Subdweller Laser Ballistic Gun Light Assault Rifle Launcher Grenade Launcher Build | -11 -10 -10 ------- Run | Yrd Mat Sub Slots Evolved . | . . . Power . | . . . Propulsion . | . . . Utility . | . . . Weapon . | . . . Parts Attached 16 | 6 6 4 Power 3 | 1 1 1 Engine 3 | 1 1 1 Core . | . . . Reactor . | . . . Propulsion 6 | 2 2 2 Treads . | . . . Leg . | . . . Wheel 5 | 2 1 2 Hover . | . . . Flight 1 | . 1 . Utility 3 | 1 2 . Device 1 | 1 . . Storage . | . . . Processor . | . . . Hackware . | . . . Protection 2 | . 2 . Artifact . | . . . Weapon 4 | 2 1 1 Energy Gun 2 | 1 . 1 Energy Cannon . | . . . Ballistic Gun 1 | 1 . . Ballistic Cannon . | . . . Launcher 1 | . 1 . Special Weapon . | . . . Impact Weapon . | . . . Slashing Weapon . | . . . Piercing Weapon . | . . . Special Melee Weapon . | . . . Unidentified Prototypes . | . . . Parts Lost 8 | . 2 6 Power 2 | . 1 1 Propulsion 3 | . . 3 Utility 1 | . . 1 Weapon 2 | . 1 1 Highest Loss Streak 4 | . 1 4 To Critical Strikes . | . . . Average Backups 2 | . 3 3 Power . | . . . Propulsion . | . . . Utility 2 | . 2 3 Weapon . | . . . Tool/Special . | . . . Unused Backups 8 | 3 2 3 Power . | . . . Propulsion 2 | 2 . . Utility 5 | . 2 3 Weapon 1 | 1 . . Tool/Special . | . . . Average Slot Usage (%) 88 | . 93 82 Engine 10 | . 11 8 Wheel 26 | . 26 26 Device 12 | . 14 9 Protection 13 | . 12 14 Energy Gun 4 | . 2 7 Ballistic Gun 11 | . 10 14 Launcher 8 | . 12 1 Peak Build Rating 10 | 6 7 10 Average Rating 6 | 2 6 7 On Entrance 4 | . 6 6 Avg Prop Armor Cover (%) . | . . . Naked Turns . | . . . Heaviest Build 12 | 7 10 12 Greatest Support 30 | 20 20 30 Greatest Overweight (x) 2 | . 2 . Average Overweight (x) . | . . . Largest Inventory Capacity 5 | 5 5 5 Average Capacity 5 | 5 5 5 Most Carried 5 | 4 5 5 Average Carried 3 | . 3 3 Final Capacity 5 | 5 5 5 Final Carried 4 | . 4 3 Class Distribution -------------------- 78% | Mutant 21% | Scavenger-Mutant Dominant Class ---------------- Mutant | -10/Materials Scavenger-Mutant | -10/Subcaves Resources | -11 -10 -10 ----------- Run | Yrd Mat Sub Matter Collected 561 | 255 165 141 Remotely . | . . . Salvage Created 323 | 50 169 104 Parts 27 | 4 14 9 Haulers Intercepted 1 | . 1 . Recyclers Shooed . | . . . Parts Field Recycled . | . . . Retrieved Matter . | . . . Parts Self-Destructed 11 | . . 11 Prevented . | . . . Parts Restored . | . . . Kills | -11 -10 -10 ------- Run | Yrd Mat Sub Combat Hostiles Destroyed 12 | 1 6 5 Guns 5 | 1 . 4 AOE 7 | . 6 1 Classes Destroyed 6 | 1 3 2 Builder 1 | . 1 . Hauler 1 | . 1 . Watcher 2 | . 2 . Swarmer 4 | . . 4 Grunt 7 | 1 6 . Subdweller 1 | . . 1 Best Kill Streak 6 | 1 6 4 Combat Bots Only 5 | 1 5 4 Max Kills in Single Turn 4 | 1 4 1 Gunslinging . | . . . Exploded 3 | . 3 1 Melee . | . . . Uniques/NPCs Destroyed . | . . . Combat | -11 -10 -10 -------- Run | Yrd Mat Sub Hostile Shots Fired 120 | 6 16 98 Missed 41 | 1 4 36 Hits 79 | 5 12 62 Projectile 79 | 5 12 62 Damage Taken 801 | 53 207 541 Core 256 | 10 23 223 Absorbed by Shields . | . . . Redirected to Shielding 49 | . 10 39 Core Remaining (%) 96 | 96 . . Volleys Fired 56 | 5 31 20 Largest 2 | 2 2 2 Hottest 80 | 60 50 80 Shots Fired 73 | 10 32 31 Gun 59 | 10 20 29 Cannon . | . . . Launcher 14 | . 12 2 Special . | . . . Kinetic 43 | 5 20 18 Thermal 11 | . . 11 Explosive 14 | . 12 2 Electromagnetic 5 | 5 . . Robot Hit Streak 7 | 4 7 5 Robot Miss Streak 4 | 1 3 4 Penetration Max . | . . . Secondary Targets 1 | . . 1 Max Gunslinging Chain 1 | . . 1 Shots Hit Robots 32 | 6 12 14 Core Hits 31 | 2 18 11 Critical Kills . | . . . Critical Parts Destroyed . | . . . Critical Strikes . | . . . Melee Attacks . | . . . Impact . | . . . Slashing . | . . . Piercing . | . . . Sneak Attacks . | . . . Combat Hostiles . | . . . Follow-up Attacks . | . . . Damage Inflicted 1098 | 83 754 261 Guns 333 | 83 68 182 Cannons . | . . . Explosions 765 | . 686 79 Melee . | . . . Ramming . | . . . Kinetic 195 | 27 68 100 Thermal 82 | . . 82 Explosive 765 | . 686 79 Electromagnetic 56 | 56 . . Impact . | . . . Slashing . | . . . Piercing . | . . . Highest Corruption . | . . . Average Corruption . | . . . Corruption Purged . | . . . Corruption Blocked . | . . . Overload Shots . | . . . Overflow Damage 20 | . 6 14 Projectiles . | . . . Explosions 20 | . 6 14 Melee . | . . . Knockbacks . | . . . Impact . | . . . Kinetic . | . . . Secondary . | . . . Self-Inflicted Damage 97 | . 75 22 Shots 6 | . 5 1 Rammed . | . . . Targets Rammed . | . . . Kicked . | . . . Crushed . | . . . Highest Temperature 20 | 20 . 8 Average Temperature 12 | 12 . 8 Received Heat Transfer 294 | 30 72 192 Siege Activations . | . . . Martial Activations . | . . . Shielding Activations . | . . . Robots Disrupted . | . . . Combat Hostiles . | . . . Robots Corrupted . | . . . Combat Hostiles . | . . . Parts Fried . | . . . Impact Corruptions . | . . . Robots Melted . | . . . Combat Hostiles . | . . . Parts Melted . | . . . Heat Transferred 100 | . . 100 Parts Sabotaged . | . . . Parts Stolen . | . . . Parts Stripped . | . . . Power Chain Reactions . | . . . Alert | -11 -10 -10 ------- Run | Yrd Mat Sub Maximum Alert Level . | . . . Low Security (%) 100 | 100 100 . Level 1 . | . . . Level 2 . | . . . Level 3 . | . . . Level 4 . | . . . Level 5 . | . . . High Security . | . . . Max Security . | . . . Peak Influence 158 | 20 158 . Initial 13 | . 13 . Average 67 | 1 91 . Influence Increases 440 | 20 250 170 Destroy 0b10 Robot/C 220 | 20 120 80 Destroy 0b10 Robot/NC 20 | . 20 . Destroy Leader 26 | . 26 . Successful Hack 4 | . 4 . Disable Machine 15 | . 15 . Destroy Structure 65 | . 65 . Lose Combat Pursuer 90 | . . 90 Influence Decreases 390 | . 164 226 Entered New Map 59 | . 7 52 Time Decay 261 | . 147 114 Lost Part 70 | . 10 60 Squads Dispatched 2 | . 2 . Investigation 1 | . 1 . Extermination . | . . . Reinforcement 1 | . 1 . Assault . | . . . Garrison . | . . . Intercept . | . . . Searches Triggered . | . . . Construction Impeded . | . . . Haulers Reinforced . | . . . Active Scanning Responses . | . . . Cargo Convoy Interrupts . | . . . Stealth | -11 -10 -10 --------- Run | Yrd Mat Sub Distress Signals 1 | . 1 . Communications Jammed . | . . . Distress Signals . | . . . Times Spotted 29 | 1 13 15 Peak Tracking Total 6 | 1 5 6 Tactical Retreats 2 | . . 2 Traps | -11 -10 -10 ------- Run | Yrd Mat Sub Traps Triggered . | . . . Indirectly . | . . . Trap Hack Attempts . | . . . Triggered . | . . . Disarmed . | . . . Reprogrammed . | . . . Reused . | . . . Traps Extracted . | . . . Installed . | . . . Triggered . | . . . Machines | -11 -10 -10 ---------- Run | Yrd Mat Sub Machines Disabled 1 | . 1 . Max in Single Turn 1 | . 1 . Machines Repaired . | . . . Machines Dismantled . | . . . Machines Sabotaged . | . . . Overloaded Fab Kills . | . . . Hacking | -11 -10 -10 --------- Run | Yrd Mat Sub Machines Accessed 1 | . 1 . Terminals . | . . . Fabricators . | . . . Repair Stations 1 | . 1 . Recycling Units . | . . . Scanalyzers . | . . . Garrison Access . | . . . Total Hacks 3 | . 3 . Successful 2 | . 2 . Failed 1 | . 1 . Catastrophic . | . . . Database Lockouts . | . . . Manual 1 | . 1 . Terminals . | . . . Fabricators . | . . . Repair Stations 3 | . 3 . Recycling Units . | . . . Scanalyzers . | . . . Garrison Access . | . . . Terminal Hacks . | . . . Fabricator Hacks . | . . . Repair Station Hacks 2 | . 2 . Scan Component 2 | . 2 . Recycling Unit Hacks . | . . . Scanalyzer . | . . . Garrison Access Hacks . | . . . Unauthorized Hacks . | . . . Terminals . | . . . Fabricators . | . . . Repair Stations . | . . . Recycling Units . | . . . Scanalyzers . | . . . Garrison Access . | . . . Data Cores Recovered . | . . . Used . | . . . Hacking Detections 1 | . 1 . Full Trace Events 1 | . 1 . Feedback Events . | . . . Feedback Blocked . | . . . Robot Schematics Acquired . | . . . Robots Built . | . . . Authchips . | . . . Time . | . . . Total Robot Build Rating . | . . . Part Schematics Acquired . | . . . Parts Built . | . . . Authchips . | . . . Time . | . . . Total Part Build Rating . | . . . Part Studies Acquired . | . . . Parts Repaired . | . . . Time . | . . . Parts Recycled . | . . . Recycled Matter . | . . . Retrieved Matter . | . . . Retrieved Components . | . . . Parts Scanalyzed . | . . . Part Schematics Acquired . | . . . Parts Damaged . | . . . Bothacking | -11 -10 -10 ------------ Run | Yrd Mat Sub Used RIF Installer . | . . . Robots Hacked . | . . . Non-combat . | . . . Combat . | . . . Robot Hacks Applied . | . . . Relay Couplers Released . | . . . Fabnet Peak Effective % . | . . . Robots Rewired . | . . . Allies Hacked . | . . . Hacks Repelled . | . . . Allies | -11 -10 -10 -------- Run | Yrd Mat Sub Total Allies . | . . . Largest Group . | . . . Highest-Rated Group . | . . . Highest-Rated Ally . | . . . Total Orders . | . . . Ally Attacks . | . . . Total Damage . | . . . Kills . | . . . Allies Corrupted . | . . . Allies Melted . | . . . Intel | -11 -10 -10 ------- Run | Yrd Mat Sub Active Infowar (turns) . | . . . Robot Analysis Total . | . . . Derelict Logs Recovered . | . . . Drone Launches . | . . . Drone Recoveries . | . . . Exploration | -11 -10 -10 ------------- Run | Yrd Mat Sub Turns Passed 815 | 138 391 286 Spaces Moved 735 | 111 379 245 Core 35 | 35 . . Treads . | . . . Legs . | . . . Wheels 699 | 76 378 245 Hover . | . . . Flight 1 | . 1 . Fastest Speed 50 | 50 80 80 Average Speed 82 | 70 80 92 Slowest Speed 200 | 80 200 95 Overloaded Moves . | . . . Propulsion Burnouts . | . . . Robots Hopped . | . . . Potential Cave-ins . | . . . Cave-ins Triggered . | . . . Exploration Rate (%) 23 | 8 48 13 Regions Visited 2 Branch Regions 1 Pre-discovered Areas . | . . . Known Exits Taken . | . . . Unknown Exits Taken 2 | 1 1 . Scrap Searched . | . . . Spaces Dug 5 | . 5 . Terrain Destroyed 90 | . 76 14 Melee . | . . . Projectile . | . . . AOE 90 | . 76 14 Terrain Rammed . | . . . Walls Destroyed . | . . . Machines Disabled . | . . . Actions | -11 -10 -10 --------- Run | Yrd Mat Sub Total 879 | 162 440 277 Wait 29 | 29 . . Move 733 | 110 378 245 Hop . | . . . Pick Up 27 | 9 14 4 Fast Attach . | . . . Attach 18 | 6 7 5 Detach . | . . . Swap 3 | . 2 1 Drop 13 | 3 8 2 Fire 56 | 5 31 20 Melee . | . . . Ram . | . . . Kick . | . . . Crush . | . . . Escape Stasis . | . . . Rewire . | . . . Trap . | . . . Miscellaneous . | . . . Route ------- -11/Scrapyard -10/Materials (discovered 2 exits: [*Min] / [*Sub]) -10/Subcaves (discovered 1 exit: [Scr]) History --------- Turn | Location | Event 2 | -11/Scrapyard | Met Revision 17 112 | -11/Scrapyard | Discovered new exit (range 8) 139 | -11/Scrapyard | Entered Materials 140 | -10/Materials | Met a group of wandering Federalists 331 | -10/Materials | Build established: Mutant 404 | -10/Materials | Discovered new exit (range 7) 497 | -10/Materials | Discovered new exit (range 9) 530 | -10/Materials | Entered Subcaves 531 | -10/Subcaves | Continued accompanying wandering Federalists (6) 531 | -10/Subcaves | Approached by a straggling Scientist 723 | -10/Subcaves | Core integrity fell below 50% 757 | -10/Subcaves | Lost 4 parts (1p1n1u1w) 810 | -10/Subcaves | Core integrity fell below 20% 816 | -10/Subcaves | Destroyed by O2-21X(R) with Subdweller Machine Gun Last Messages --------------- Destroyed Flight Unit. S-10 Pest destroyed. Flight Unit fries itself beyond repair. Lgt. Assault Rifle fries itself beyond repair. K7-ZNR(O) collects matter. Sub. Laser destroyed. Lgt. Ion Engine fries itself beyond repair. Heat Sink destroyed. Sub. Monowheel destroyed. Sub. Power Source destroyed. Acquired 1 matter. K7-ZNR(O) puts together Sub. Monowheel. NS-MWL(c): "I think it's somewhere south of here" Acquired Sub. Monowheel. Acquired 10 matter. NS-MWL(c): "I think it's somewhere south of here" When the line of fire is red, you are attempting to shoot through an object at another target, which incurs significant penalties. Wheel destroyed. [Achievement: First Step to Greatness] Map ----- +----------------------------------------------------+ | " " "???###???## % ##?# ????????? | | ??"? ???????????##### % #### ## #?????????? | | ????????????????????## ##???? #?????????? | | ?????????????????????# ###### #??????????? | | ?????????????????????# ## #??????????? | | ?????????????????????# %#????????????????? | | ?????????????????????## %##????????????????? | | ??????????????????????# ##????????????????? | | ??????????????????????### ##???????????????? | | ????????????????????????## #???????????????? | | ???????????????????????### #???????????????? | | ??????????????????????## ## #???????????????? | | ??????????????????????# ### #???????????????? | | ??????????????????????# ####"" #???????????????? | | ??????????????????????## ####" #???????????????? | | ???????????????????????# #?####???????????????? | | ??????????????????????## #????????????????????? | | ??????????????????????# #????????????????????? | | ??????????????????????# #????????????????????? | | ??????????????????????## #????????????????????? | | ???????????????????????## #????????????????????? | | ????????????????????????## #????????????????????? | | ????????????????????????## #????????????????????? | | ????????????????????????# ##????????????????????? | | ???????????????????????## #?????????????????????? | | ???????????????????????#R@##?????????????????????? | | ??????????????????????#"#R#??????????????????????? | | ????????????????????? ""R" #?????????????????????? | | ???????????????????? """ "" ????????????????????? | | ???????????????????###"#" "## ???????????????????? | | ?????????????????????###"""#??"??????????????????? | | ???????????????????????#"" #???#?????????????????? | | ????????????????????????" #?????????????????????? | | ????????????????????????" ##?????????????????????? | | ???????????????????????? #??????????????????????? | | ???????????????????????? ???????????????????????? | | ?????????????????????????????????????????????????? | | ?????????????????????????????????????????????????? | | ?????????????????????????????????????????????????? | | ?????????????????????????????????????????????????? | | ?????????????????????????????????????????????????? | | ?????????????????????????????????????????????????? | | ?????????????????????????????????????????????????? | | ?????????????????????????????????????????????????? | | ?????????????????????????????????????????????????? | | ?????????????????????????????????????????????????? | | ?????????????????????????????????????????????????? | | ?????????????????????????????????????????????????? | | ?????????????????????????????????????????????????? | | ?????????????????????????????????????????????????? | +----------------------------------------------------+ Best States ------------- Heat Dissipation 35 Energy Generation 15 Energy Capacity 200 Matter Stores 300 Matter Capacity 300 Sight Range 16 Terrain Scan Density 10 Power Shielding 33 Weapon Shielding 33 Evasion (%) 50 Item Schematics ----------------- None Robot Schematics ------------------ None Fabricated ------------ Nothing Repaired ---------- Nothing Studied --------- None Alien Tech Used ----------------- None Achievements -------------- First Step to Greatness I Have A Map? Loot Pinata Organ Harvest Strength In Numbers There's More Where That Came From Uninvited Guest Challenges ------------ None Game ------ Seed WeightHugeCasing Manual? 0 Play Time 00:31:07 Cumulative 0.4 hours Start 2026.01.02 @ 22:49:27 End 2026.01.02 @ 23:21:56 Sessions 2 Manual Loads 0 Difficulty Rogue Special Mode None Game No. 1 Rogue 1 Adventurer 0 Explorer 0 Win Type - Total 0 Types 0/0/0/0/0/0/0/0/0/0 Lore% 0 Gallery% 1 Achievement% 1 Wizard Run 0 Options --------- Layout 0 ASCII 0 Keyboard 0 Movement Arrows Keybinds 0 Fullscreen 2 Font 18/SmallcapsGlow Map View 76x50 Zoom Use 0% Tactical HUD 0 Map Filters NONE Filters NONE Steam 1 RUN: 90a8872e-adf8-4c54-8708-da222ba77b6d